bitfinex/quotes_SOLUSD_20240725
["timestamp","ask_amount","ask_price","bid_price","bid_amount"]
[1721902935736,5.9123,169.14,169.03,17.69486624]
[1721902936163,5.9119,169.15,169.04,45.0]
[1721902936740,5.9122,169.14,169.04,45.0]
[1721902937172,20.0,169.16,169.04,45.0]
[1721902937659,20.0,169.16,169.04,46.18274138]
[1721902937868,5.9115,169.16,169.05,1.18257445]
[1721902938355,67.1939,169.2,169.06,6.5763]
[1721902938554,37.81,169.19,169.06,6.5763]
[1721902939647,62.81,169.18,169.06,6.5763]
[1721902939849,5.9118,169.16,169.06,6.5763]
[1721902940060,5.9119,169.15,169.06,6.5763]
[1721902940240,5.9123,169.14,169.06,6.5763]
[1721902941060,37.81,169.17,169.06,6.5763]
[1721902941257,62.81,169.16,169.03,16.5121]
[1721902941556,17.81,169.13,169.03,16.5121]
[1721902941757,5.9136,169.11,169.03,16.5121]
[1721902942456,5.9137,169.1,169.03,16.5121]
[1721902942662,5.9142,169.09,169.03,16.5121]
[1721902943249,62.81,169.12,169.03,16.5121]
[1721902943558,79.5832,169.11,169.02,6.3955]
[1721902943766,62.81,169.1,169.02,6.3955]
[1721902943977,5.9146,169.08,169.02,6.3955]
[1721902944669,5.914,169.09,169.02,6.3955]
[1721902944854,45.0,169.08,169.02,6.3955]
[1721902945354,50.9145,169.08,169.02,6.3955]
[1721902946541,45.0,169.08,169.02,6.3955]
[1721902946963,50.9144,169.08,169.02,6.3955]
[1721902947756,50.9144,169.08,168.99,16.0808]
[1721902948756,17.81,169.07,168.99,16.0808]
[1721902948958,5.9171,169.01,168.94,21.7661]
[1721902949450,5.9172,169.0,168.94,21.7661]
[1721902950056,5.9167,169.02,168.94,21.7661]
[1721902950258,5.9156,169.05,168.94,21.7661]
[1721902950569,17.81,169.03,168.94,21.7661]
[1721902950744,65.0,169.02,168.94,6.227]
[1721902950940,5.9178,168.98,168.9,42.1663]
[1721902951544,44.8,169.01,168.9,42.1663]
[1721902951751,82.81,169.0,168.9,42.1663]
[1721902951964,5.918,168.98,168.9,42.1663]
[1721902952162,5.9175,168.99,168.9,42.1663]
[1721902952382,70.9172,169.0,168.9,42.1663]
[1721902952742,5.9175,168.99,168.9,42.1663]
[1721902953367,70.9172,169.0,168.9,42.1663]
[1721902953947,65.0,169.0,168.9,42.1663]
[1721902954355,50.9171,169.0,168.9,42.1663]
[1721902954949,62.81,169.0,168.9,42.1663]
[1721902955149,20.0,168.99,168.9,42.1663]
[1721902955867,25.9172,169.0,168.9,42.1663]
[1721902956454,5.9161,169.03,168.91,1.18378297]
[1721902956655,5.9161,169.03,168.91,46.18378297]
[1721902956852,32.9057,169.04,168.91,46.18378297]
[1721902958061,5.9161,169.03,168.91,46.18378297]
[1721902958262,5.9161,169.03,168.91,45.0]
[1721902959165,5.9161,169.03,168.91,46.18352798]
[1721902959658,5.9161,169.03,168.91,45.0]
[1721902959887,5.9171,169.01,168.9,42.1663]
[1721902960183,5.9167,169.02,168.9,42.1663]
[1721902960369,5.9157,169.04,168.9,43.349949]
[1721902960755,20.0,169.03,168.9,70.339949]
[1721902961175,20.0,169.03,168.91,45.0]
[1721902961374,20.0,169.03,168.92,1.18350804]
[1721902961672,20.0,169.04,168.93,16.54661441]
[1721902961864,20.0,169.04,168.94,45.0]
[1721902962267,20.0,169.04,168.95,7.50740997]
[1721902962455,20.0,169.05,168.96,1.18340997]
[1721902962658,20.0,169.07,168.95,6.324]
[1721902962871,20.0,169.07,168.96,45.0]
[1721902963879,5.9151,169.06,168.96,45.0]
[1721902964268,25.9147,169.07,168.96,46.18327775]
[1721902964669,20.0,169.07,168.96,46.18327775]
[1721902964879,20.0,169.08,168.97,15.287]
[1721902965074,25.9143,169.08,168.98,1.18318182]
[1721902965284,25.9143,169.08,168.99,1.1831158]
[1721902965465,20.0,169.08,168.99,1.1831158]
[1721902965977,25.9143,169.08,168.99,1.1831158]
[1721902966278,25.9143,169.08,168.98,46.18312801]
[1721902967399,5.9154,169.05,168.97,15.287]
[1721902968264,5.9151,169.06,168.97,15.287]
[1721902968981,5.9147,169.07,168.97,15.287]
[1721902970170,25.9144,169.08,168.97,15.287]
[1721902970365,20.0,169.08,168.98,1.18321059]
[1721902970576,20.0,169.08,168.99,6.2486]
[1721902970771,26.99,169.09,168.99,6.2486]
[1721902970970,5.9144,169.08,168.99,6.2486]
[1721902971182,26.99,169.09,168.99,6.2486]
[1721902971384,32.9041,169.09,168.99,6.2486]
[1721902971571,26.99,169.09,168.99,6.2486]
[1721902972408,32.904,169.09,168.99,6.2486]
[1721902972869,5.9143,169.08,168.99,6.2486]
[1721902973067,20.0,169.07,168.99,6.2486]
[1721902973272,26.99,169.06,168.99,6.2486]
[1721902973888,5.9157,169.04,168.99,6.2486]
[1721902974192,5.9154,169.05,168.99,6.2486]
[1721902974692,32.9051,169.06,168.99,6.2486]
[1721902976177,26.99,169.06,168.99,6.2486]
[1721902976399,45.0,169.05,168.99,6.2486]
[1721902976600,32.9051,169.06,168.99,6.2486]
[1721902976601,26.99,169.06,168.99,6.2486]
[1721902977169,20.0,169.07,168.99,6.2486]
[1721902977425,26.99,169.09,168.99,6.2486]
[1721902977575,25.9145,169.08,168.99,6.2486]
[1721902977902,5.9148,169.07,168.99,6.2486]
[1721902978078,5.915,169.06,168.99,6.2486]
[1721902979015,17.81,169.04,168.97,15.287]
[1721902979205,89.8,169.03,168.97,15.287]
[1721902979382,5.9168,169.01,168.97,15.287]
[1721902980427,17.81,168.99,168.9,20.0]
[1721902980586,26.99,168.97,168.9,20.0]
[1721902980787,5.919,168.95,168.9,20.0]
[1721902981089,25.9188,168.96,168.9,20.0]
[1721902981695,20.0,168.96,168.9,20.0]
[1721902982019,5.92,168.92,168.9,20.0]
[1721902982214,5.9203,168.91,168.9,20.0]
[1721902982512,5.9199,168.93,168.9,20.0]
[1721902983101,5.92,168.92,168.9,20.0]
[1721902983818,50.9203,168.91,168.9,20.0]
[1721902984426,77.9103,168.91,168.9,20.0]
[1721902984631,77.9103,168.91,168.9,16.40127938]
[1721902984632,115.7203,168.91,168.9,16.40127938]
[1721902985314,115.7203,168.91,168.9,4.70627938]
[1721902985494,116.74766154,168.91,168.9,4.70627938]
[1721902986328,5.9222,168.86,168.81,6.2872]
[1721902986538,68.7325,168.85,168.8,16.2281]
[1721902986826,45.0,168.85,168.8,16.2281]
[1721902987208,50.9225,168.85,168.8,16.2281]
[1721902987407,50.9225,168.85,168.77,6.354]
[1721902987610,5.9228,168.84,168.77,6.354]
[1721902988124,5.9238,168.81,168.77,6.354]
[1721902988331,5.9238,168.81,168.74,16.2557]
[1721902988510,5.9241,168.8,168.74,16.2557]
[1721902989025,5.9238,168.81,168.74,16.2557]
[1721902989327,32.9138,168.81,168.74,16.2557]
[1721902989527,17.81,168.8,168.68,69.47355448]
[1721902989825,17.81,168.77,168.68,69.47355448]
[1721902990206,45.0,168.76,168.68,69.47355448]
[1721902990620,62.81,168.77,168.68,69.47355448]
[1721902991014,68.7355,168.77,168.68,69.47355448]
[1721902991828,62.81,168.77,168.68,69.47355448]
[1721902992723,26.99,168.75,168.68,47.59805448]
[1721902993023,32.9176,168.71,168.68,47.59805448]
[1721902993422,50.9276,168.7,168.68,47.59805448]
[1721902993617,5.928,168.69,168.68,47.59805448]
[1721902993921,50.928,168.69,168.68,47.59805448]
[1721902994823,70.928,168.69,168.68,13.61714588]
[1721902995050,88.738,168.69,168.68,13.61714588]
[1721902995732,23.9711,168.67,168.65,0.3779]
[1721902995907,109.8,168.66,168.56,6.4405]
[1721902996110,5.9302,168.63,168.56,6.4405]
[1721902996310,45.0,168.62,168.56,6.4405]
[1721902997329,20.0,168.66,168.56,6.4405]
[1721902997627,1.46254438,168.69,168.56,6.4405]
[1721902998334,5.9291,168.66,168.56,6.4405]
[1721902998527,1.46254438,168.69,168.56,6.4405]
[1721902998737,5.9291,168.66,168.56,6.4405]
[1721902999037,41.8081,168.72,168.56,6.4405]
[1721902999038,26.99,168.68,168.56,6.4405]
[1721902999353,5.9294,168.65,168.56,6.4405]
[1721902999545,45.0,168.64,168.56,6.4405]
[1721903000044,45.0,168.65,168.56,6.4405]
[1721903000725,20.0,168.64,168.56,6.4405]
[1721903001819,45.0,168.65,168.56,6.4405]
[1721903001820,50.9295,168.65,168.56,6.4405]
[1721903002238,5.9289,168.67,168.56,6.4405]
[1721903002532,17.81,168.68,168.56,6.4405]
[1721903002738,26.99,168.66,168.56,6.4405]
[1721903002919,17.81,168.65,168.56,6.4405]
[1721903003234,32.9191,168.66,168.56,6.4405]
[1721903003445,33.15105728,168.69,168.56,6.4405]
[1721903003640,5.9277,168.7,168.57,16.1872]
[1721903003950,5.9277,168.7,168.57,17.37327189]
[1721903004120,26.99,168.72,168.58,1.18611413]
[1721903004432,17.81,168.68,168.57,16.1872]
[1721903004813,17.81,168.68,168.58,1.18617001]
[1721903005024,17.81,168.68,168.57,16.1872]
[1721903005243,5.9276,168.71,168.57,17.37334565]
[1721903005533,36.7669823,168.73,168.57,17.37334565]
[1721903005534,17.81,168.68,168.57,16.1872]
[1721903005741,23.7387,168.67,168.57,17.37342241]
[1721903006039,23.7387,168.67,168.57,16.1872]
[1721903006721,17.81,168.65,168.57,16.1872]
[1721903006916,44.8,168.66,168.57,16.1872]
[1721903007317,26.99,168.66,168.57,16.1872]
[1721903007832,56.7669823,168.73,168.57,16.1872]
[1721903008024,17.81,168.67,168.57,16.1872]
[1721903009028,23.7388,168.67,168.57,16.1872]
[1721903009220,26.99,168.72,168.57,16.1872]
[1721903009221,44.8,168.65,168.57,16.1872]
[1721903009421,23.7401,168.63,168.57,16.1872]
[1721903009639,17.81,168.64,168.57,16.1872]
[1721903009939,5.9287,168.67,168.57,16.1872]
[1721903010127,32.9184,168.68,168.57,16.1872]
[1721903010327,50.9287,168.67,168.57,16.1872]
[1721903010522,68.7387,168.67,168.57,16.1872]
[1721903011238,17.81,168.65,168.57,16.1872]
[1721903011939,44.8,168.65,168.57,16.1872]
[1721903012135,50.7294,168.65,168.57,16.1872]
[1721903012637,44.8,168.65,168.57,16.1872]
[1721903013739,50.7297,168.65,168.57,16.1872]
[1721903014038,17.81,168.63,168.57,16.1872]
[1721903014243,62.81,168.62,168.57,16.1872]
[1721903015926,17.81,168.64,168.57,16.1872]
[1721903016125,62.81,168.63,168.57,16.1872]
[1721903016340,17.81,168.63,168.57,16.1872]
[1721903017034,17.81,168.62,168.57,16.1872]
[1721903017539,17.81,168.64,168.57,16.1872]
[1721903017739,62.81,168.63,168.57,16.1872]
[1721903017953,17.81,168.61,168.56,6.4405]
[1721903018248,26.99,168.62,168.56,6.4405]
[1721903018623,44.8,168.62,168.56,6.4405]
[1721903018952,68.7411,168.61,168.56,6.4405]
[1721903019250,23.7412,168.6,168.53,15.2709]
[1721903020026,17.81,168.6,168.53,15.2709]
[1721903020445,23.7412,168.6,168.53,15.2709]
[1721903020648,17.81,168.6,168.53,15.2709]
[1721903021025,23.7412,168.6,168.53,15.2709]
[1721903021330,45.0,168.61,168.53,15.2709]
[1721903021520,17.81,168.6,168.53,15.2709]
[1721903021726,26.99,168.62,168.53,15.2709]
[1721903022127,45.0,168.61,168.53,15.2709]
[1721903022546,17.81,168.6,168.53,15.2709]
[1721903022827,23.7414,168.6,168.53,15.2709]
[1721903023644,17.81,168.6,168.53,15.2709]
[1721903023959,6.16112713,168.64,168.56,22.6472]
[1721903024256,16.0674,168.77,168.56,22.6472]
[1721903024257,26.99,168.68,168.56,22.6472]
[1721903024426,26.99,168.65,168.56,22.6472]
[1721903024824,5.9299,168.64,168.56,22.6472]
[1721903025029,17.84,168.64,168.56,22.6472]
[1721903026251,26.99,168.65,168.56,22.6472]
[1721903026546,44.83,168.65,168.56,22.6472]
[1721903027127,26.99,168.65,168.56,22.6472]
[1721903027339,18.41802254,168.73,168.56,22.6472]
[1721903027340,17.84,168.67,168.56,22.6472]
[1721903027847,44.83,168.65,168.56,22.6472]
[1721903028051,26.99,168.65,168.56,22.6472]
[1721903028263,44.83,168.65,168.56,22.6472]
[1721903029247,44.83,168.62,168.56,22.6472]
[1721903029653,62.84,168.61,168.56,22.6472]
[1721903029845,17.84,168.61,168.56,22.6472]
[1721903030841,26.99,168.62,168.56,22.6472]
[1721903031039,50.9297,168.64,168.56,22.6472]
[1721903031336,26.99,168.65,168.56,22.6472]
[1721903031337,5.9295,168.65,168.56,22.6472]
[1721903031538,20.0,168.64,168.56,22.6472]
[1721903031856,25.9299,168.64,168.56,22.6472]
[1721903032061,17.84,168.63,168.56,22.6472]
[1721903032431,23.7707,168.62,168.56,22.6472]
[1721903032647,23.771,168.61,168.56,22.6472]
[1721903032846,17.84,168.61,168.56,22.6472]
[1721903033154,23.7709,168.61,168.56,22.6472]
[1721903033537,23.7709,168.61,168.52,22.3257]
[1721903034069,23.7712,168.6,168.52,22.3257]
[1721903034251,17.84,168.58,168.52,22.3257]
[1721903035053,45.0,168.59,168.52,22.3257]
[1721903035659,62.84,168.59,168.52,22.3257]
[1721903036158,17.84,168.59,168.52,22.3257]
[1721903036531,23.7716,168.59,168.52,22.3257]
[1721903036735,17.84,168.59,168.52,22.3257]
[1721903037264,44.83,168.6,168.52,22.3257]
[1721903037472,17.84,168.6,168.52,22.3257]
[1721903037840,23.7714,168.6,168.52,22.3257]
[1721903038044,17.84,168.58,168.52,22.3257]
[1721903038451,45.0,168.59,168.52,22.3257]
[1721903039263,27.13926219,168.58,168.52,22.3257]
[1721903039848,9.29926219,168.58,168.52,22.3257]
[1721903040260,13.55,168.55,168.52,22.3257]
[1721903041648,13.55,168.56,168.52,22.3257]
[1721903042172,13.55,168.57,168.52,22.3257]
[1721903042348,12.09495635,168.62,168.53,13.55]
[1721903042349,13.55,168.59,168.53,13.55]
[1721903042653,13.55,168.59,168.54,13.55]
[1721903042858,13.55,168.6,168.52,22.3257]
[1721903043070,13.55,168.59,168.53,13.55]
[1721903043273,13.55,168.58,168.53,13.55]
[1721903043452,13.55,168.58,168.52,37.06222395]
[1721903043654,13.55,168.58,168.52,35.8757]
[1721903043863,9.29835595,168.61,168.54,13.55]
[1721903044359,13.55,168.59,168.54,13.55]
[1721903044560,13.55,168.6,168.54,13.55]
[1721903044946,9.29835595,168.61,168.54,13.55]
[1721903045152,13.55,168.6,168.54,13.55]
[1721903045357,13.55,168.6,168.55,1.18643065]
[1721903045866,17.84,168.63,168.55,1.18643065]
[1721903045867,13.55,168.63,168.57,36.3385]
[1721903046068,13.55,168.64,168.58,14.73611779]
[1721903046270,13.55,168.64,168.58,13.55]
[1721903046777,23.7677,168.7,168.59,13.55]
[1721903046975,13.55,168.65,168.59,13.55]
[1721903047761,13.55,168.65,168.6,1.18601622]
[1721903048078,13.55,168.65,168.59,13.55]
[1721903048287,9.29488038,168.68,168.57,22.7885]
[1721903048493,9.29488038,168.68,168.58,1.18601847]
[1721903048857,6.15959583,168.71,168.58,1.18601847]
[1721903049151,9.29395137,168.7,168.59,22.6788]
[1721903049351,23.7674,168.71,168.59,22.6788]
[1721903049552,27.06,168.73,168.6,1.18591647]
[1721903049756,10.69419311,168.72,168.62,22.8879]
[1721903050004,28.53419311,168.72,168.62,22.8879]
[1721903050163,23.7669,168.72,168.62,22.8879]
[1721903050363,10.69411617,168.71,168.62,22.8879]
[1721903050875,17.84,168.72,168.62,22.8879]
[1721903051090,27.06,168.73,168.63,1.18582844]
[1721903051292,27.06,168.73,168.62,22.8879]
[1721903051586,27.06,168.73,168.63,1.1857113]
[1721903052377,50.8267,168.73,168.62,22.8879]
[1721903052575,27.06,168.73,168.62,22.8879]
[1721903052797,389.2,168.74,168.63,1.18554386]
[1721903052961,389.2,168.74,168.64,22.4251]
[1721903053868,389.2,168.74,168.64,23.61061594]
[1721903054064,389.2,168.74,168.66,21.9767]
[1721903054283,9.2914367,168.77,168.67,1.18540337]
[1721903054464,9.2914367,168.77,168.68,1.18533822]
[1721903054882,51.06029044,168.8,168.68,1.18533822]
[1721903055057,51.06029044,168.8,168.67,1.18532189]
[1721903055058,9.28867215,168.79,168.67,1.18532189]
[1721903055269,9.28867215,168.79,168.7,6.4445]
[1721903055469,27.06,168.8,168.7,6.4445]
[1721903055668,254.1,168.81,168.7,6.4445]
[1721903055972,23.7635,168.82,168.7,6.4445]
[1721903056283,32.9832,168.83,168.7,6.4445]
[1721903056486,39.14444502,168.83,168.7,6.4445]
[1721903056682,56.98444502,168.83,168.7,6.4445]
[1721903056874,33.22124502,168.83,168.71,17.39237522]
[1721903057081,27.06,168.83,168.72,6.1168]
[1721903057278,27.06,168.83,168.73,1.18488364]
[1721903057584,27.06,168.83,168.72,6.1168]
[1721903058288,44.9,168.83,168.72,6.1168]
[1721903058784,27.06,168.83,168.72,6.1168]
[1721903059478,32.9832,168.83,168.72,6.1168]
[1721903060872,27.06,168.83,168.72,6.1168]
[1721903061385,27.06,168.83,168.73,1.18498098]
[1721903061683,5.9236,168.82,168.73,1.18498098]
[1721903061985,27.06,168.83,168.72,7.30175059]
[1721903062569,32.9831,168.83,168.72,7.30175059]
[1721903062890,27.06,168.83,168.72,7.30175059]
[1721903063185,15.44903204,168.86,168.76,22.3616]
[1721903063489,5.9213,168.88,168.76,23.54612901]
[1721903063684,17.84,168.9,168.77,1.18462489]
[1721903063685,9.28480748,168.86,168.77,1.18462489]
[1721903064889,5.9207,168.9,168.77,1.18462489]
[1721903065182,9.28428107,168.87,168.77,1.18462489]
[1721903066577,39.1408871,168.91,168.78,22.4643]
[1721903066776,27.06,168.91,168.79,1.18437175]
[1721903066981,27.06,168.91,168.8,1.18441489]
[1721903067182,27.06,168.91,168.78,23.64871659]
[1721903067388,32.9806,168.91,168.78,23.64871659]
[1721903067897,5.9208,168.9,168.78,23.64871659]
[1721903068269,44.9,168.88,168.78,22.4643]
[1721903068470,44.9,168.88,168.72,7.07366214]
[1721903068471,17.84,168.84,168.72,22.1417]
[1721903068694,61.3279,168.87,168.72,22.1417]
[1721903068695,27.06,168.8,168.72,22.1417]
[1721903068991,17.84,168.79,168.72,22.1417]
[1721903069506,5.9252,168.77,168.72,22.1417]
[1721903069786,44.9,168.77,168.72,22.1417]
[1721903069989,27.06,168.77,168.72,22.1417]
[1721903070973,32.9852,168.77,168.72,22.1417]
[1721903071390,27.06,168.77,168.72,22.1417]
[1721903074069,44.9,168.77,168.72,22.1417]
[1721903074288,44.9,168.77,168.63,22.3511]
[1721903074482,17.84,168.75,168.63,22.3511]
[1721903075377,23.7661,168.75,168.63,22.3511]
[1721903076389,5.9263,168.74,168.63,22.3511]
[1721903076589,32.9863,168.74,168.63,22.3511]
[1721903076785,5.9267,168.73,168.63,22.3511]
[1721903076989,23.7667,168.73,168.63,22.3511]
[1721903077182,23.767,168.72,168.63,22.3511]
[1721903077804,17.84,168.72,168.63,22.3511]
[1721903078099,51.06850598,168.74,168.63,22.3511]
[1721903078287,44.9,168.74,168.63,22.3511]
[1721903079417,17.84,168.72,168.63,22.3511]
[1721903079587,23.7669,168.72,168.63,22.3511]
[1721903079899,17.84,168.72,168.63,22.3511]
[1721903080488,5.9266,168.73,168.63,22.3511]
[1721903080690,44.9,168.74,168.63,22.3511]
[1721903081295,27.06,168.74,168.63,22.3511]
[1721903081809,33.22794244,168.77,168.64,1.18566417]
[1721903082012,33.22794244,168.77,168.63,22.3511]
[1721903082013,45.0,168.76,168.63,22.3511]
[1721903082807,62.84,168.76,168.63,22.3511]
[1721903083304,39.15324244,168.77,168.64,1.18555682]
[1721903083502,33.22794244,168.77,168.66,21.75]
[1721903086402,39.15314244,168.77,168.66,21.75]
[1721903086706,33.22794244,168.77,168.66,21.75]
[1721903086917,6.16794244,168.77,168.67,1.1853269]
[1721903087107,6.16794244,168.77,168.68,1.18530007]
[1721903087294,50.8242,168.8,168.68,1.18530007]
[1721903087486,56.99052455,168.8,168.68,1.18530007]
[1721903087686,5.9245,168.79,168.68,1.18530007]
[1721903087886,51.06632455,168.8,168.68,1.18530007]
[1721903088107,56.99052455,168.8,168.66,22.93523507]
[1721903088902,51.06632455,168.8,168.66,22.93523507]
[1721903089112,5.9258,168.76,168.66,21.75]
[1721903090191,32.9853,168.77,168.66,21.75]
[1721903090811,27.06,168.77,168.66,21.75]
[1721903092407,27.06,168.77,168.67,1.18537636]
[1721903092612,44.9,168.8,168.68,22.9543]
[1721903092803,50.8244,168.8,168.68,22.9543]
[1721903093203,44.9,168.8,168.68,22.9543]
[1721903094107,44.9,168.8,168.63,1.18525761]
[1721903094108,20.0490973,168.82,168.69,21.0755]
[1721903094306,37.84,168.81,168.69,21.0755]
[1721903094510,43.7638,168.81,168.69,21.0755]
[1721903094915,23.7642,168.8,168.69,21.0755]
[1721903096012,29.2690973,168.82,168.7,1.18529005]
[1721903096013,53.0325973,168.82,168.7,1.18529005]
[1721903096198,17.84,168.8,168.69,21.0755]
[1721903097816,17.84,168.81,168.69,21.0755]
[1721903099015,23.7639,168.81,168.69,21.0755]
[1721903099601,29.2690973,168.82,168.69,21.0755]
[1721903099602,44.9,168.79,168.69,21.0755]
[1721903100300,27.06,168.76,168.69,21.0755]
[1721903100505,44.9,168.76,168.69,21.0755]
[1721903102114,5.9263,168.74,168.69,21.0755]
[1721903102313,89.9,168.73,168.69,15.0136]
[1721903102540,109.9,168.73,168.69,15.0136]
[1721903103016,115.8266,168.73,168.69,15.0136]
[1721903103199,115.8266,168.73,168.65,22.7442]
[1721903103395,5.9269,168.72,168.65,22.7442]
[1721903103600,23.7669,168.72,168.65,22.7442]
[1721903103817,17.84,168.72,168.65,22.7442]
[1721903105004,23.7671,168.72,168.65,22.7442]
[1721903105203,17.84,168.72,168.65,22.7442]
[1721903105519,23.7684,168.68,168.61,21.9463]
[1721903105708,17.84,168.68,168.61,21.9463]
[1721903106503,27.06,168.7,168.61,21.9463]
[1721903106504,17.84,168.69,168.61,21.9463]
[1721903106707,62.84,168.68,168.61,21.9463]
[1721903107200,17.84,168.66,168.61,21.9463]
[1721903108421,23.7688,168.67,168.61,21.9463]
[1721903108625,44.9,168.67,168.61,21.9463]
[1721903109209,50.8288,168.67,168.61,21.9463]
[1721903112645,68.7691,168.66,168.61,21.9463]
[1721903113141,23.7694,168.65,168.57,21.693]
[1721903113316,17.84,168.63,168.57,21.693]
[1721903113734,23.7701,168.63,168.57,21.693]
[1721903114215,23.7705,168.62,168.57,21.693]
[1721903115128,17.84,168.62,168.57,21.693]
[1721903115341,17.84,168.61,168.53,21.3311]
[1721903115543,17.84,168.59,168.53,21.3311]
[1721903117210,23.7716,168.59,168.53,21.3311]
[1721903118117,14.8261,168.63,168.5,0.8037985]
[1721903118118,17.84,168.57,168.5,0.8037985]
[1721903118518,23.7723,168.57,168.5,0.8037985]
[1721903119343,17.84,168.52,168.5,0.8037985]
[1721903119548,27.06,168.55,168.5,0.8037985]
[1721903119549,5.9333,168.54,168.5,0.8037985]
[1721903119756,27.06,168.55,168.5,0.8037985]
[1721903120216,27.06,168.58,168.5,0.8037985]
[1721903120419,5.933,168.55,168.5,0.8037985]
[1721903120624,62.84,168.54,168.5,0.8037985]
[1721903121345,68.7734,168.54,168.5,0.8037985]
[1721903121518,62.84,168.54,168.5,0.8037985]
[1721903121720,17.84,168.54,168.5,0.8037985]
[1721903122037,5.9326,168.56,168.5,0.8037985]
[1721903122222,27.06,168.58,168.5,0.8037985]
[1721903122424,5.9328,168.56,168.5,0.8037985]
[1721903122746,17.84,168.54,168.5,0.8037985]
[1721903123325,23.7733,168.54,168.5,0.8037985]
[1721903123536,17.84,168.54,168.5,0.8037985]
[1721903124033,27.06,168.58,168.5,0.8037985]
[1721903124240,5.933,168.55,168.5,0.8037985]
[1721903124940,17.84,168.55,168.5,0.8037985]
[1721903125735,14.8281,168.6,168.5,0.8037985]
[1721903125736,43.2116,168.61,168.5,0.8037985]
[1721903125916,17.84,168.57,168.5,0.8037985]
[1721903127117,27.14070272,168.57,168.5,0.8037985]
[1721903127549,17.84,168.57,168.5,0.8037985]
[1721903129830,62.84,168.56,168.5,0.8037985]
[1721903132240,13.55,168.53,168.5,0.8037985]
[1721903132446,13.55,168.52,168.5,0.8037985]
[1721903134331,13.55,168.53,168.5,0.8037985]
[1721903135436,13.55,168.52,168.5,0.8037985]
[1721903136247,13.55,168.53,168.5,0.8037985]
[1721903138152,68.7726,168.56,168.5,0.8037985]
[1721903138153,62.84,168.56,168.5,0.8037985]
[1721903138334,17.84,168.6,168.51,13.55]
[1721903138537,17.84,168.6,168.5,14.3537985]
[1721903138834,13.55,168.55,168.5,14.3537985]
[1721903139237,23.7713,168.6,168.5,14.3537985]
[1721903139238,29.9356423,168.6,168.51,22.1188]
[1721903139445,13.55,168.56,168.51,22.1188]
[1721903139833,13.55,168.55,168.51,22.1188]
[1721903140032,13.55,168.56,168.51,22.1188]
[1721903140736,13.55,168.54,168.51,22.1188]
[1721903140940,13.55,168.55,168.51,22.1188]
[1721903141648,13.55,168.56,168.51,35.6688]
[1721903141852,13.55,168.58,168.53,13.55]
[1721903142225,28.78139975,168.65,168.54,14.73644743]
[1721903142425,13.55,168.6,168.55,13.55]
[1721903142642,13.55,168.6,168.52,1.18645293]
[1721903142643,13.55,168.61,168.56,13.55]
[1721903142845,9.30049975,168.65,168.57,16.3974]
[1721903143052,9.30049975,168.65,168.58,6.4519]
[1721903143053,13.55,168.63,168.58,6.4519]
[1721903143438,13.55,168.61,168.58,6.4519]
[1721903143938,13.55,168.63,168.58,20.0019]
[1721903144127,9.30049975,168.65,168.58,6.4519]
[1721903144334,27.14049975,168.65,168.58,6.4519]
[1721903146051,9.30049975,168.65,168.58,6.4519]